[Event "Titled Tuesday Blitz March 07 Early 2023"]
[White "Alhadad, Mahmoud"]
[Black "Manukian, Artak"]
[WhiteFideId "11501863"]
[BlackFideId "13301373"]
[WhiteElo "1955"]
[BlackElo "2130"]
[Result "0-1"]
[Round "10"]
[TimeControl "180+2"]
[Date "2023.03.07"]
[WhiteClock "0:00:03"]
[BlackClock "0:00:17"]

1. e4 {[%clk 0:03:00]}  c6 {[%clk 0:02:58]} 2. d4 {[%clk 0:03:00]}  d5 {[%clk 0:02:56]} 3. exd5 {[%clk 0:03:01]}  cxd5 {[%clk 0:02:56]} 4. Bd3 {[%clk 0:03:01]}  Nc6 {[%clk 0:02:54]} 5. c3 {[%clk 0:03:01]}  g6 {[%clk 0:02:52]} 6. Bf4 {[%clk 0:02:58]}  Bg7 {[%clk 0:02:47]} 7. Nf3 {[%clk 0:02:58]}  Bg4 {[%clk 0:02:46]} 8. O-O {[%clk 0:02:58]}  Nf6 {[%clk 0:02:44]} 9. Nbd2 {[%clk 0:02:58]}  O-O {[%clk 0:02:44]} 10. Qe1 {[%clk 0:02:57]}  Bxf3 {[%clk 0:02:42]} 11. Nxf3 {[%clk 0:02:57]}  e6 {[%clk 0:02:41]} 12. Ne5 {[%clk 0:02:50]}  Nxe5 {[%clk 0:02:41]} 13. Bxe5 {[%clk 0:02:46]}  Nd7 {[%clk 0:02:39]} 14. Bxg7 {[%clk 0:02:46]}  Kxg7 {[%clk 0:02:40]} 15. f4 {[%clk 0:02:46]}  Rb8 {[%clk 0:02:39]} 16. Rf3 {[%clk 0:02:43]}  b5 {[%clk 0:02:37]} 17. a3 {[%clk 0:02:43]}  a5 {[%clk 0:02:36]} 18. Rh3 {[%clk 0:02:40]}  Rh8 {[%clk 0:02:28]} 19. g4 {[%clk 0:02:38]}  h6 {[%clk 0:01:54]} 20. b4 {[%clk 0:02:11]}  Qc7 {[%clk 0:01:44]} 21. Qd2 {[%clk 0:01:54]}  Nf6 {[%clk 0:01:40]} 22. f5 {[%clk 0:01:42]}  exf5 {[%clk 0:01:34]} 23. gxf5 {[%clk 0:01:42]}  g5 {[%clk 0:01:33]} 24. Rg3 {[%clk 0:01:30]}  axb4 {[%clk 0:01:27]} 25. axb4 {[%clk 0:01:22]}  Rhg8 {[%clk 0:01:23]} 26. Kh1 {[%clk 0:01:17]}  Qc6 {[%clk 0:01:18]} 27. Ra7 {[%clk 0:00:26]}  Ra8 {[%clk 0:00:56]} 28. Rxa8 {[%clk 0:00:24]}  Rxa8 {[%clk 0:00:53]} 29. Qe2 {[%clk 0:00:24]}  Qxc3 {[%clk 0:00:48]} 30. Bxb5 {[%clk 0:00:19]}  Qxd4 {[%clk 0:00:45]} 31. h4 {[%clk 0:00:17]}  Qxh4+ {[%clk 0:00:43]} 32. Kg2 {[%clk 0:00:17]}  Qxb4 {[%clk 0:00:41]} 33. Bc6 {[%clk 0:00:13]}  Rc8 {[%clk 0:00:34]} 34. Bb5 {[%clk 0:00:04]}  Qe4+ {[%clk 0:00:22]} 35. Qxe4 {[%clk 0:00:04]}  dxe4 {[%clk 0:00:21]} 36. Re3 {[%clk 0:00:04]}  Rc5 {[%clk 0:00:21]} 37. Ba4 {[%clk 0:00:04]}  Rxf5 {[%clk 0:00:21]} 38. Bc2 {[%clk 0:00:03]}  Rf4 {[%clk 0:00:21]} 39. Kg3 {[%clk 0:00:03]}  h5 {[%clk 0:00:18]} 40. Kh3 {[%clk 0:00:03]}  h4 {[%clk 0:00:17]} 41. Kh2 {[%clk 0:00:03]}  Ng4+ {[%clk 0:00:17]} 42. Kh3 {[%clk 0:00:03]}  Nxe3 {[%clk 0:00:18]} 43. Bxe4 {[%clk 0:00:03]}  Rxe4 {[%clk 0:00:17]} 0-1


[Site "https://www.chess.com"]

[Event "Titled Tuesday Blitz March 07 Early 2023"]
[White "Postnikov, Artem"]
[Black "Tsyhanchuk, Stanislav"]
[WhiteFideId "34153575"]
[BlackFideId "13505130"]
[WhiteElo "2243"]
[BlackElo "2173"]
[Result "1-0"]
[Round "10"]
[TimeControl "180+2"]
[Date "2023.03.07"]
[WhiteClock "0:00:38"]
[BlackClock "0:00:10"]

1. d4 {[%clk 0:02:55]}  Nf6 {[%clk 0:02:56]} 2. c4 {[%clk 0:02:55]}  Nc6 {[%clk 0:02:56]} 3. Nf3 {[%clk 0:02:54]}  e6 {[%clk 0:02:56]} 4. g3 {[%clk 0:02:54]}  Bb4+ {[%clk 0:02:56]} 5. Nbd2 {[%clk 0:02:52]}  d6 {[%clk 0:02:54]} 6. Bg2 {[%clk 0:02:52]}  e5 {[%clk 0:02:54]} 7. d5 {[%clk 0:02:35]}  Ne7 {[%clk 0:02:51]} 8. Qa4+ {[%clk 0:02:33]}  Bd7 {[%clk 0:02:25]} 9. Qxb4 {[%clk 0:02:33]}  O-O {[%clk 0:02:25]} 10. O-O {[%clk 0:02:33]}  c6 {[%clk 0:02:20]} 11. Qxd6 {[%clk 0:02:28]}  e4 {[%clk 0:02:17]} 12. Ne5 {[%clk 0:02:21]}  Nf5 {[%clk 0:02:05]} 13. Qa3 {[%clk 0:02:15]}  e3 {[%clk 0:02:04]} 14. fxe3 {[%clk 0:02:13]}  Ne7 {[%clk 0:02:01]} 15. dxc6 {[%clk 0:01:59]}  Nxc6 {[%clk 0:01:55]} 16. Nxd7 {[%clk 0:01:55]}  Qxd7 {[%clk 0:01:52]} 17. Nf3 {[%clk 0:01:56]}  Ng4 {[%clk 0:01:45]} 18. e4 {[%clk 0:01:47]}  Qe6 {[%clk 0:01:35]} 19. h3 {[%clk 0:01:41]}  Nf6 {[%clk 0:01:32]} 20. e5 {[%clk 0:01:38]}  Ne4 {[%clk 0:01:31]} 21. Bf4 {[%clk 0:01:28]}  Qxc4 {[%clk 0:01:26]} 22. Qd3 {[%clk 0:01:20]}  Qxd3 {[%clk 0:00:47]} 23. exd3 {[%clk 0:01:21]}  Nc5 {[%clk 0:00:47]} 24. d4 {[%clk 0:01:19]}  Nd3 {[%clk 0:00:39]} 25. d5 {[%clk 0:01:18]}  Ne7 {[%clk 0:00:30]} 26. d6 {[%clk 0:01:18]}  Ng6 {[%clk 0:00:27]} 27. Rfd1 {[%clk 0:01:15]}  Ndxf4 {[%clk 0:00:24]} 28. gxf4 {[%clk 0:01:16]}  Nxf4 {[%clk 0:00:25]} 29. d7 {[%clk 0:01:09]}  Rfd8 {[%clk 0:00:20]} 30. Rac1 {[%clk 0:01:09]}  Kf8 {[%clk 0:00:20]} 31. Rc7 {[%clk 0:00:59]}  Rab8 {[%clk 0:00:20]} 32. Nd4 {[%clk 0:00:55]}  Ke7 {[%clk 0:00:19]} 33. Bxb7 {[%clk 0:00:42]}  g6 {[%clk 0:00:17]} 34. Nc6+ {[%clk 0:00:41]}  Ke6 {[%clk 0:00:17]} 35. Nxb8 {[%clk 0:00:41]}  Kxe5 {[%clk 0:00:12]} 36. Nc6+ {[%clk 0:00:41]}  Ke6 {[%clk 0:00:11]} 37. Nxd8+ {[%clk 0:00:41]}  Ke7 {[%clk 0:00:12]} 38. Nc6+ {[%clk 0:00:42]}  Kf6 {[%clk 0:00:12]} 39. d8=Q+ {[%clk 0:00:42]}  Kf5 {[%clk 0:00:13]} 40. Ne7+ {[%clk 0:00:41]}  Ke5 {[%clk 0:00:10]} 41. Qd6# {[%clk 0:00:38]} 1-0


[Site "https://www.chess.com"]

[Event "Titled Tuesday Blitz March 07 Early 2023"]
[White "Oro, Faustino"]
[Black "Jovic, Stanoje"]
[WhiteFideId "20000197"]
[BlackFideId "905020"]
[WhiteElo "1984"]
[BlackElo "2236"]
[Result "1-0"]
[Round "10"]
[TimeControl "180+2"]
[Date "2023.03.07"]
[WhiteClock "0:00:03"]
[BlackClock "0:00:15"]

1. e4 {[%clk 0:03:00]}  c6 {[%clk 0:03:00]} 2. d4 {[%clk 0:03:00]}  d5 {[%clk 0:03:00]} 3. e5 {[%clk 0:03:00]}  c5 {[%clk 0:03:00]} 4. dxc5 {[%clk 0:02:59]}  e6 {[%clk 0:03:00]} 5. Nf3 {[%clk 0:02:59]}  Bxc5 {[%clk 0:03:00]} 6. Bd3 {[%clk 0:03:00]}  Ne7 {[%clk 0:03:00]} 7. O-O {[%clk 0:02:59]}  Ng6 {[%clk 0:02:59]} 8. Nbd2 {[%clk 0:02:59]}  a5 {[%clk 0:02:58]} 9. Nb3 {[%clk 0:02:54]}  Bb6 {[%clk 0:02:57]} 10. a4 {[%clk 0:02:46]}  Nc6 {[%clk 0:02:56]} 11. Re1 {[%clk 0:02:45]}  O-O {[%clk 0:02:54]} 12. Be3 {[%clk 0:02:36]}  Bd7 {[%clk 0:02:46]} 13. Bxg6 {[%clk 0:02:28]}  fxg6 {[%clk 0:02:44]} 14. Nbd4 {[%clk 0:02:01]}  Nxd4 {[%clk 0:02:33]} 15. Bxd4 {[%clk 0:02:02]}  Rc8 {[%clk 0:02:25]} 16. c3 {[%clk 0:01:54]}  Bc5 {[%clk 0:02:12]} 17. Bxc5 {[%clk 0:01:38]}  Rxc5 {[%clk 0:02:11]} 18. Nd4 {[%clk 0:01:34]}  Rc4 {[%clk 0:02:06]} 19. Qb3 {[%clk 0:01:16]}  Qh4 {[%clk 0:01:43]} 20. g3 {[%clk 0:01:05]}  Qh3 {[%clk 0:01:31]} 21. Qxb7 {[%clk 0:01:01]}  Bc8 {[%clk 0:01:22]} 22. Qe7 {[%clk 0:00:53]}  h6 {[%clk 0:01:07]} 23. Nb5 {[%clk 0:00:43]}  Rf7 {[%clk 0:00:57]} 24. Qd6 {[%clk 0:00:38]}  h5 {[%clk 0:00:49]} 25. Re3 {[%clk 0:00:33]}  h4 {[%clk 0:00:43]} 26. b3 {[%clk 0:00:25]}  Rxf2 {[%clk 0:00:42]} 27. Kxf2 {[%clk 0:00:12]}  Qxh2+ {[%clk 0:00:42]} 28. Ke1 {[%clk 0:00:13]}  Rg4 {[%clk 0:00:36]} 29. Qd8+ {[%clk 0:00:12]}  Kh7 {[%clk 0:00:36]} 30. Re2 {[%clk 0:00:06]}  Qg1+ {[%clk 0:00:34]} 31. Kd2 {[%clk 0:00:07]}  Qxa1 {[%clk 0:00:33]} 32. Qxc8 {[%clk 0:00:05]}  Qb2+ {[%clk 0:00:31]} 33. Ke1 {[%clk 0:00:05]}  hxg3 {[%clk 0:00:28]} 34. Rxb2 {[%clk 0:00:04]}  g2 {[%clk 0:00:28]} 35. Rxg2 {[%clk 0:00:04]}  Rxg2 {[%clk 0:00:28]} 36. Qxe6 {[%clk 0:00:05]}  Rg3 {[%clk 0:00:25]} 37. Qxd5 {[%clk 0:00:04]}  g5 {[%clk 0:00:25]} 38. Nd4 {[%clk 0:00:05]}  g4 {[%clk 0:00:24]} 39. e6 {[%clk 0:00:05]}  Re3+ {[%clk 0:00:23]} 40. Kd2 {[%clk 0:00:05]}  g3 {[%clk 0:00:18]} 41. Qh5+ {[%clk 0:00:04]}  Kg8 {[%clk 0:00:18]} 42. Kxe3 {[%clk 0:00:04]}  g2 {[%clk 0:00:18]} 43. Kf2 {[%clk 0:00:03]}  g1=Q+ {[%clk 0:00:18]} 44. Kxg1 {[%clk 0:00:04]}  g6 {[%clk 0:00:16]} 45. Qxg6+ {[%clk 0:00:04]}  Kh8 {[%clk 0:00:17]} 46. Qh6+ {[%clk 0:00:02]}  Kg8 {[%clk 0:00:17]} 47. Qg5+ {[%clk 0:00:03]}  Kh7 {[%clk 0:00:16]} 48. Nf5 {[%clk 0:00:03]}  Kh8 {[%clk 0:00:15]} 49. Qg7# {[%clk 0:00:03]} 1-0


[Site "https://www.chess.com"]

[Event "Titled Tuesday Blitz March 07 Early 2023"]
[White "Sadubayev, Airat"]
[Black "Alahakoon, Isuru"]
[WhiteFideId "13713264"]
[BlackFideId "9900993"]
[WhiteElo "2129"]
[BlackElo "1995"]
[Result "1-0"]
[Round "10"]
[TimeControl "180+2"]
[Date "2023.03.07"]
[WhiteClock "0:00:05"]
[BlackClock "0:00:10"]

1. d4 {[%clk 0:03:00]}  d5 {[%clk 0:02:59]} 2. c4 {[%clk 0:03:01]}  e6 {[%clk 0:02:59]} 3. Nf3 {[%clk 0:03:01]}  Nf6 {[%clk 0:02:59]} 4. g3 {[%clk 0:03:00]}  Bb4+ {[%clk 0:02:59]} 5. Bd2 {[%clk 0:02:49]}  Bd6 {[%clk 0:02:54]} 6. Bg2 {[%clk 0:02:48]}  c6 {[%clk 0:02:53]} 7. O-O {[%clk 0:02:46]}  O-O {[%clk 0:02:53]} 8. Qc2 {[%clk 0:02:44]}  Nbd7 {[%clk 0:02:53]} 9. Rd1 {[%clk 0:02:30]}  Ne4 {[%clk 0:02:51]} 10. Be1 {[%clk 0:02:23]}  f5 {[%clk 0:02:50]} 11. Nbd2 {[%clk 0:02:20]}  Qf6 {[%clk 0:02:44]} 12. cxd5 {[%clk 0:02:16]}  exd5 {[%clk 0:02:42]} 13. Nb3 {[%clk 0:02:12]}  g5 {[%clk 0:02:37]} 14. Bd2 {[%clk 0:02:07]}  f4 {[%clk 0:02:32]} 15. Be1 {[%clk 0:02:00]}  g4 {[%clk 0:02:27]} 16. Nfd2 {[%clk 0:01:57]}  Nxd2 {[%clk 0:02:23]} 17. Nxd2 {[%clk 0:01:35]}  fxg3 {[%clk 0:02:04]} 18. hxg3 {[%clk 0:01:33]}  Bxg3 {[%clk 0:01:29]} 19. fxg3 {[%clk 0:01:27]}  Qxd4+ {[%clk 0:01:29]} 20. Kh2 {[%clk 0:01:00]}  Qb6 {[%clk 0:00:30]} 21. Nf1 {[%clk 0:00:39]}  Ne5 {[%clk 0:00:18]} 22. Bc3 {[%clk 0:00:34]}  Bf5 {[%clk 0:00:17]} 23. Qd2 {[%clk 0:00:28]}  Ng6 {[%clk 0:00:15]} 24. Qd4 {[%clk 0:00:24]}  Qc7 {[%clk 0:00:14]} 25. e4 {[%clk 0:00:19]}  Bxe4 {[%clk 0:00:11]} 26. Bxe4 {[%clk 0:00:18]}  dxe4 {[%clk 0:00:12]} 27. Re1 {[%clk 0:00:12]}  Rf2+ {[%clk 0:00:11]} 28. Qxf2 {[%clk 0:00:11]}  Rf8 {[%clk 0:00:12]} 29. Qe3 {[%clk 0:00:10]}  Qf7 {[%clk 0:00:08]} 30. Nd2 {[%clk 0:00:08]}  Qf5 {[%clk 0:00:07]} 31. Rf1 {[%clk 0:00:07]}  Qh5+ {[%clk 0:00:08]} 32. Kg1 {[%clk 0:00:07]}  Rf3 {[%clk 0:00:09]} 33. Nxf3 {[%clk 0:00:06]}  gxf3 {[%clk 0:00:10]} 34. Qd4 {[%clk 0:00:05]}  Qh3 {[%clk 0:00:10]} 35. Qg7# {[%clk 0:00:05]} 1-0


[Site "https://www.chess.com"]

[Event "Titled Tuesday Blitz March 07 Early 2023"]
[White "MrAnnihilation"]
[Black "Belov, Alexei"]
[BlackFideId "4128206"]
[WhiteElo "2353"]
[BlackElo "2543"]
[Result "0-1"]
[Round "10"]
[TimeControl "180+2"]
[Date "2023.03.07"]
[WhiteClock "0:00:12"]
[BlackClock "0:00:45"]

1. e4 {[%clk 0:02:56]}  e6 {[%clk 0:02:59]} 2. d3 {[%clk 0:02:55]}  d5 {[%clk 0:02:59]} 3. Qe2 {[%clk 0:02:56]}  Nf6 {[%clk 0:02:57]} 4. Nf3 {[%clk 0:02:56]}  Nc6 {[%clk 0:02:56]} 5. c3 {[%clk 0:02:55]}  e5 {[%clk 0:02:54]} 6. b4 {[%clk 0:02:46]}  a6 {[%clk 0:02:54]} 7. a3 {[%clk 0:02:40]}  Bg4 {[%clk 0:02:49]} 8. h3 {[%clk 0:02:32]}  Bh5 {[%clk 0:02:48]} 9. g4 {[%clk 0:02:16]}  Bg6 {[%clk 0:02:48]} 10. Bg2 {[%clk 0:02:17]}  dxe4 {[%clk 0:02:47]} 11. dxe4 {[%clk 0:02:14]}  Bxe4 {[%clk 0:02:40]} 12. Nxe5 {[%clk 0:01:55]}  Nxe5 {[%clk 0:01:42]} 13. Bxe4 {[%clk 0:01:54]}  Nxe4 {[%clk 0:01:32]} 14. Qxe4 {[%clk 0:01:54]}  Qe7 {[%clk 0:01:32]} 15. O-O {[%clk 0:01:16]}  O-O-O {[%clk 0:01:31]} 16. f4 {[%clk 0:01:01]}  Nd3 {[%clk 0:01:24]} 17. Qxe7 {[%clk 0:01:00]}  Bxe7 {[%clk 0:01:24]} 18. Be3 {[%clk 0:00:59]}  h5 {[%clk 0:01:22]} 19. g5 {[%clk 0:00:55]}  Nb2 {[%clk 0:01:15]} 20. Bd4 {[%clk 0:00:50]}  f6 {[%clk 0:01:13]} 21. h4 {[%clk 0:00:47]}  Nc4 {[%clk 0:01:07]} 22. Ra2 {[%clk 0:00:37]}  b6 {[%clk 0:01:04]} 23. Re2 {[%clk 0:00:33]}  Rhe8 {[%clk 0:01:02]} 24. Rfe1 {[%clk 0:00:29]}  Kd7 {[%clk 0:01:02]} 25. a4 {[%clk 0:00:18]}  c5 {[%clk 0:00:57]} 26. bxc5 {[%clk 0:00:16]}  bxc5 {[%clk 0:00:58]} 27. Bf2 {[%clk 0:00:16]}  Bd6 {[%clk 0:00:57]} 28. Rxe8 {[%clk 0:00:11]}  Rxe8 {[%clk 0:00:57]} 29. Rxe8 {[%clk 0:00:12]}  Kxe8 {[%clk 0:00:58]} 30. f5 {[%clk 0:00:12]}  fxg5 {[%clk 0:00:52]} 31. hxg5 {[%clk 0:00:12]}  Bf4 {[%clk 0:00:52]} 32. g6 {[%clk 0:00:11]}  Bd6 {[%clk 0:00:49]} 33. Kg2 {[%clk 0:00:12]}  Ke7 {[%clk 0:00:50]} 34. Kh3 {[%clk 0:00:12]}  Kf6 {[%clk 0:00:50]} 35. Kh4 {[%clk 0:00:13]}  Kxf5 {[%clk 0:00:49]} 36. Kxh5 {[%clk 0:00:13]}  Ke4 {[%clk 0:00:47]} 37. Bh4 {[%clk 0:00:13]}  Be5 {[%clk 0:00:46]} 38. Be1 {[%clk 0:00:12]}  Kd3 {[%clk 0:00:46]} 39. Kg5 {[%clk 0:00:12]}  Kc2 {[%clk 0:00:45]} 0-1


[Site "https://www.chess.com"]

[Event "Titled Tuesday Blitz March 07 Early 2023"]
[White "Vifleemskaia, Svetlana"]
[Black "Kaplan, Avi Harrison"]
[WhiteFideId "4129490"]
[BlackFideId "30934559"]
[WhiteElo "1930"]
[BlackElo "1983"]
[Result "0-1"]
[Round "10"]
[TimeControl "180+2"]
[Date "2023.03.07"]
[WhiteClock "0:00:03"]
[BlackClock "0:00:05"]

1. d4 {[%clk 0:03:00]}  g6 {[%clk 0:02:51]} 2. c4 {[%clk 0:03:00]}  Bg7 {[%clk 0:02:51]} 3. e4 {[%clk 0:03:00]}  d6 {[%clk 0:02:51]} 4. Nc3 {[%clk 0:02:59]}  f5 {[%clk 0:02:51]} 5. h4 {[%clk 0:02:54]}  e5 {[%clk 0:02:46]} 6. d5 {[%clk 0:02:50]}  Nf6 {[%clk 0:02:42]} 7. h5 {[%clk 0:02:48]}  Nxh5 {[%clk 0:02:39]} 8. Rxh5 {[%clk 0:02:48]}  gxh5 {[%clk 0:02:40]} 9. Qxh5+ {[%clk 0:02:48]}  Kf8 {[%clk 0:02:40]} 10. exf5 {[%clk 0:02:45]}  Qe8 {[%clk 0:02:28]} 11. Qf3 {[%clk 0:02:24]}  Qf7 {[%clk 0:02:08]} 12. Bd3 {[%clk 0:02:23]}  Na6 {[%clk 0:01:58]} 13. Nge2 {[%clk 0:02:16]}  Nc5 {[%clk 0:01:53]} 14. Bc2 {[%clk 0:02:15]}  a5 {[%clk 0:01:47]} 15. g4 {[%clk 0:02:13]}  Bd7 {[%clk 0:01:37]} 16. g5 {[%clk 0:02:09]}  e4 {[%clk 0:01:33]} 17. Nxe4 {[%clk 0:01:15]}  Qxf5 {[%clk 0:01:11]} 18. Qxf5+ {[%clk 0:01:02]}  Bxf5 {[%clk 0:01:12]} 19. N2g3 {[%clk 0:01:00]}  Bxe4 {[%clk 0:00:55]} 20. Nxe4 {[%clk 0:00:56]}  Re8 {[%clk 0:00:44]} 21. f3 {[%clk 0:00:54]}  a4 {[%clk 0:00:23]} 22. Kf2 {[%clk 0:00:51]}  a3 {[%clk 0:00:22]} 23. Rb1 {[%clk 0:00:49]}  Nxe4+ {[%clk 0:00:21]} 24. Bxe4 {[%clk 0:00:45]}  axb2 {[%clk 0:00:19]} 25. Bxb2 {[%clk 0:00:42]}  Bxb2 {[%clk 0:00:20]} 26. Rxb2 {[%clk 0:00:43]}  b6 {[%clk 0:00:21]} 27. Kg3 {[%clk 0:00:27]}  Kg7 {[%clk 0:00:18]} 28. Kg4 {[%clk 0:00:24]}  Ra8 {[%clk 0:00:15]} 29. Rh2 {[%clk 0:00:24]}  Ra4 {[%clk 0:00:14]} 30. Bd3 {[%clk 0:00:20]}  b5 {[%clk 0:00:14]} 31. Rc2 {[%clk 0:00:19]}  bxc4 {[%clk 0:00:14]} 32. Bxc4 {[%clk 0:00:19]}  c6 {[%clk 0:00:11]} 33. Kg3 {[%clk 0:00:18]}  c5 {[%clk 0:00:07]} 34. Bb3 {[%clk 0:00:18]}  Rd4 {[%clk 0:00:07]} 35. Re2 {[%clk 0:00:18]}  Rg8 {[%clk 0:00:06]} 36. f4 {[%clk 0:00:13]}  c4 {[%clk 0:00:06]} 37. Bc2 {[%clk 0:00:09]}  Rf8 {[%clk 0:00:04]} 38. Re7+ {[%clk 0:00:07]}  Rf7 {[%clk 0:00:04]} 39. Rxf7+ {[%clk 0:00:05]}  Kxf7 {[%clk 0:00:05]} 40. f5 {[%clk 0:00:02]}  Rxd5 {[%clk 0:00:04]} 41. g6+ {[%clk 0:00:02]}  hxg6 {[%clk 0:00:04]} 42. fxg6+ {[%clk 0:00:03]}  Kg7 {[%clk 0:00:05]} 43. Kf4 {[%clk 0:00:03]}  Rd2 {[%clk 0:00:05]} 0-1


[Site "https://www.chess.com"]

[Event "Titled Tuesday Blitz March 07 Early 2023"]
[White "Hoffmann, Asa"]
[Black "Bruned, Boris"]
[WhiteFideId "2001470"]
[BlackFideId "621790"]
[WhiteElo "2117"]
[BlackElo "2049"]
[Result "1/2-1/2"]
[Round "10"]
[TimeControl "180+2"]
[Date "2023.03.07"]
[WhiteClock "0:00:38"]
[BlackClock "0:00:09"]

1. d4 {[%clk 0:02:59]}  b6 {[%clk 0:03:00]} 2. e4 {[%clk 0:02:55]}  Bb7 {[%clk 0:03:00]} 3. Bd3 {[%clk 0:02:55]}  e6 {[%clk 0:03:01]} 4. Qe2 {[%clk 0:02:55]}  d5 {[%clk 0:03:01]} 5. Nd2 {[%clk 0:02:51]}  dxe4 {[%clk 0:02:59]} 6. Bxe4 {[%clk 0:02:50]}  Bxe4 {[%clk 0:02:59]} 7. Qxe4 {[%clk 0:02:46]}  Qd5 {[%clk 0:02:59]} 8. Ngf3 {[%clk 0:02:44]}  Qxe4+ {[%clk 0:02:45]} 9. Nxe4 {[%clk 0:02:44]}  Nd7 {[%clk 0:02:46]} 10. Bf4 {[%clk 0:02:42]}  Rc8 {[%clk 0:02:44]} 11. O-O-O {[%clk 0:02:41]}  Ngf6 {[%clk 0:02:44]} 12. Nc3 {[%clk 0:02:37]}  a6 {[%clk 0:02:42]} 13. d5 {[%clk 0:02:35]}  Nxd5 {[%clk 0:01:52]} 14. Nxd5 {[%clk 0:02:31]}  exd5 {[%clk 0:01:53]} 15. Rxd5 {[%clk 0:02:29]}  Be7 {[%clk 0:01:46]} 16. Re1 {[%clk 0:02:28]}  f6 {[%clk 0:01:21]} 17. Nd4 {[%clk 0:02:22]}  c6 {[%clk 0:01:16]} 18. Rh5 {[%clk 0:02:03]}  Kf7 {[%clk 0:01:16]} 19. Nf5 {[%clk 0:01:55]}  Bb4 {[%clk 0:00:25]} 20. c3 {[%clk 0:01:50]}  Kg6 {[%clk 0:00:23]} 21. g4 {[%clk 0:01:46]}  Bc5 {[%clk 0:00:16]} 22. f3 {[%clk 0:01:39]}  Rhe8 {[%clk 0:00:13]} 23. Rd1 {[%clk 0:01:33]}  Rcd8 {[%clk 0:00:09]} 24. b4 {[%clk 0:01:31]}  Bf8 {[%clk 0:00:07]} 25. Nd6 {[%clk 0:01:24]}  Bxd6 {[%clk 0:00:07]} 26. Bxd6 {[%clk 0:01:23]}  Ne5 {[%clk 0:00:07]} 27. Bxe5 {[%clk 0:01:23]}  Rxd1+ {[%clk 0:00:07]} 28. Kxd1 {[%clk 0:01:23]}  fxe5 {[%clk 0:00:05]} 29. Rf5 {[%clk 0:01:21]}  e4 {[%clk 0:00:05]} 30. f4 {[%clk 0:01:20]}  h5 {[%clk 0:00:05]} 31. h3 {[%clk 0:01:20]}  hxg4 {[%clk 0:00:05]} 32. hxg4 {[%clk 0:01:20]}  Rh8 {[%clk 0:00:05]} 33. Ke2 {[%clk 0:01:20]}  Rh2+ {[%clk 0:00:05]} 34. Ke3 {[%clk 0:01:19]}  Rxa2 {[%clk 0:00:06]} 35. Kxe4 {[%clk 0:01:20]}  Re2+ {[%clk 0:00:06]} 36. Kd3 {[%clk 0:01:19]}  Rg2 {[%clk 0:00:06]} 37. Re5 {[%clk 0:01:19]}  Rxg4 {[%clk 0:00:06]} 38. Re6+ {[%clk 0:01:19]}  Kf5 {[%clk 0:00:07]} 39. Rxc6 {[%clk 0:01:19]}  Rg6 {[%clk 0:00:05]} 40. Rc7 {[%clk 0:00:53]}  b5 {[%clk 0:00:05]} 41. c4 {[%clk 0:00:52]}  bxc4+ {[%clk 0:00:05]} 42. Rxc4 {[%clk 0:00:51]}  Rf6 {[%clk 0:00:05]} 43. Ke3 {[%clk 0:00:51]}  Re6+ {[%clk 0:00:05]} 44. Kf3 {[%clk 0:00:50]}  g6 {[%clk 0:00:05]} 45. Rc5+ {[%clk 0:00:50]}  Kf6 {[%clk 0:00:06]} 46. Ra5 {[%clk 0:00:50]}  Rd6 {[%clk 0:00:06]} 47. Kg4 {[%clk 0:00:50]}  Rb6 {[%clk 0:00:07]} 48. Rc5 {[%clk 0:00:47]}  Re6 {[%clk 0:00:05]} 49. b5 {[%clk 0:00:47]}  axb5 {[%clk 0:00:05]} 50. Rxb5 {[%clk 0:00:47]}  Rd6 {[%clk 0:00:06]} 51. Rb8 {[%clk 0:00:45]}  Re6 {[%clk 0:00:06]} 52. Rf8+ {[%clk 0:00:44]}  Kg7 {[%clk 0:00:06]} 53. Rd8 {[%clk 0:00:43]}  Kf6 {[%clk 0:00:07]} 54. Rd5 {[%clk 0:00:42]}  Rc6 {[%clk 0:00:07]} 55. Rd4 {[%clk 0:00:41]}  Re6 {[%clk 0:00:07]} 56. Rc4 {[%clk 0:00:41]}  Rd6 {[%clk 0:00:07]} 57. Rb4 {[%clk 0:00:38]}  Re6 {[%clk 0:00:08]} 58. Rc4 {[%clk 0:00:38]}  Rd6 {[%clk 0:00:08]} 59. Rb4 {[%clk 0:00:38]}  Re6 {[%clk 0:00:09]} 60. Rc4 {[%clk 0:00:38]} 1/2-1/2


[Site "https://www.chess.com"]

[Event "Titled Tuesday Blitz March 07 Early 2023"]
[White "Pein, Jonathan"]
[Black "Torres Hernandez, Leslie Carolin"]
[WhiteFideId "417092"]
[BlackFideId "8400504"]
[WhiteElo "2151"]
[BlackElo "1920"]
[Result "1-0"]
[Round "10"]
[TimeControl "180+2"]
[Date "2023.03.07"]
[WhiteClock "0:00:46"]
[BlackClock "0:00:07"]

1. e4 {[%clk 0:03:00]}  e6 {[%clk 0:02:59]} 2. d4 {[%clk 0:02:59]}  d5 {[%clk 0:03:00]} 3. Nd2 {[%clk 0:03:00]}  c5 {[%clk 0:03:00]} 4. exd5 {[%clk 0:02:57]}  exd5 {[%clk 0:03:00]} 5. Bb5+ {[%clk 0:02:52]}  Nc6 {[%clk 0:03:00]} 6. Ngf3 {[%clk 0:02:51]}  Bd6 {[%clk 0:02:57]} 7. dxc5 {[%clk 0:02:49]}  Bxc5 {[%clk 0:02:57]} 8. O-O {[%clk 0:02:50]}  Ne7 {[%clk 0:02:57]} 9. Nb3 {[%clk 0:02:50]}  Bd6 {[%clk 0:02:57]} 10. Bg5 {[%clk 0:02:47]}  O-O {[%clk 0:02:51]} 11. Bh4 {[%clk 0:02:42]}  Qc7 {[%clk 0:02:49]} 12. Bg3 {[%clk 0:02:42]}  Rd8 {[%clk 0:02:48]} 13. Re1 {[%clk 0:02:38]}  Bg4 {[%clk 0:02:47]} 14. Bxd6 {[%clk 0:02:29]}  Rxd6 {[%clk 0:02:48]} 15. h3 {[%clk 0:02:22]}  Bh5 {[%clk 0:02:42]} 16. Be2 {[%clk 0:02:17]}  Rg6 {[%clk 0:02:35]} 17. Nbd4 {[%clk 0:02:16]}  Qf4 {[%clk 0:02:28]} 18. Nxc6 {[%clk 0:02:07]}  bxc6 {[%clk 0:02:18]} 19. Qd4 {[%clk 0:02:06]}  Qxd4 {[%clk 0:01:49]} 20. Nxd4 {[%clk 0:02:06]}  Bxe2 {[%clk 0:01:49]} 21. Rxe2 {[%clk 0:02:06]}  Kf8 {[%clk 0:01:44]} 22. Rae1 {[%clk 0:02:05]}  Re8 {[%clk 0:01:44]} 23. b4 {[%clk 0:01:51]}  Rd6 {[%clk 0:01:40]} 24. f3 {[%clk 0:01:19]}  g6 {[%clk 0:01:37]} 25. Kf2 {[%clk 0:01:17]}  a5 {[%clk 0:00:55]} 26. c3 {[%clk 0:01:06]}  axb4 {[%clk 0:00:54]} 27. cxb4 {[%clk 0:01:07]}  f5 {[%clk 0:00:38]} 28. a4 {[%clk 0:00:50]}  Kf7 {[%clk 0:00:37]} 29. a5 {[%clk 0:00:49]}  h5 {[%clk 0:00:11]} 30. h4 {[%clk 0:00:48]}  f4 {[%clk 0:00:09]} 31. a6 {[%clk 0:00:47]}  Rdd8 {[%clk 0:00:02]} 32. Rxe7+ {[%clk 0:00:46]}  Rxe7 {[%clk 0:00:03]} 33. Rxe7+ {[%clk 0:00:46]}  Kxe7 {[%clk 0:00:04]} 34. Nxc6+ {[%clk 0:00:47]}  Kd7 {[%clk 0:00:05]} 35. Nxd8 {[%clk 0:00:47]}  Kxd8 {[%clk 0:00:06]} 36. a7 {[%clk 0:00:46]}  Kc7 {[%clk 0:00:07]} 37. a8=Q {[%clk 0:00:46]} 1-0


[Site "https://www.chess.com"]